[Event "TUR-ch Youth U17 2019"]
[Site "Belek"]
[Date "2019.01.25"]
[Round "9"]
[White "Taskin, Arda"]
[Black "Gunduz, Umut Erdem"]
[Result "1/2-1/2"]
[ECO "D03"]
[WhiteElo "1693"]
[BlackElo "2255"]
[Annotator "ChessBase"]
[PlyCount "82"]
[EventDate "2019.01.20"]
[EventType "swiss"]
[EventCountry "TUR"]
[SourceTitle "playchess.com"]
[Source "ChessBase"]
[SourceQuality "1"]
[TimeControl "5400+30"]

1. d4 {[%emt 0:00:30]} Nf6 {[%emt 0:01:30]} 2. Bg5 {[%emt 0:00:00]} Ne4 {[%emt 0:01:30]} 3. Bf4 {[%emt 0:01:00]} d5 {[%emt 0:00:00]} 4. Nd2 {[%emt 0:00:00]} Bf5 {[%emt 0:01:00]} 5. Ngf3 {[%emt 0:02:00]} e6 {[%emt 0:00:30]} 6. e3 {[%emt 0:00:30]} g5 {[%emt 0:00:30]} 7. Nxe4 {[%emt 0:07:30]} gxf4 {[%emt 0:00:30]} 8. Nc3 {[%emt 0:05:30]} fxe3 {[%emt 0:00:30]} 9. fxe3 {[%emt 0:00:00]} Bh6 {[%emt 0:08:30]} 10. Qe2 {[%emt 0:03:00]} Nc6 {[%emt 0:01:30]} 11. a3 {[%emt 0:07:30]} Qe7 {[%emt 0:05:30]} 12. O-O-O {[%emt 0:01:30]} O-O-O {[%emt 0:00:30]} 13. Kb1 {[%emt 0:01:30]} Bg6 {[%emt 0:13:30]} 14. g4 {[%emt 0:05:30]} Bg7 {[%emt 0:06:30]} 15. Bg2 {[%emt 0:06:30]} h5 {[%emt 0:01:30]} 16. g5 {[%emt 0:01:30]} h4 {[%emt 0:05:30]} 17. Bh3 {[%emt 0:01:30]} Kb8 {[%emt 0:03:30]} 18. Qf2 {[%emt 0:06:30]} e5 {[%emt 0:08:30]} 19. Rhg1 {[%emt 0:08:30]} Be4 {[%emt 0:14:30]} 20. Ne2 {[%emt 0:08:30]} exd4 {[%emt 0:01:30]} 21. Nfxd4 {[%emt 0:05:30]} Ne5 {[%emt 0:02:30]} 22. Nc3 {[%emt 0:06:30]} Nc4 {[%emt 0:01:30]} 23. Nxe4 {[%emt 0:00:30]} Qxe4 {[%emt 0:04:44]} 24. Qxf7 {[%emt 0:01:52]} Be5 {[%emt 0:00:17]} 25. Ne6 {[%emt 0:05:30]} Nxe3 {[%emt 0:01:44]} 26. Rc1 {[%emt 0:02:12]} Nc4 {[%emt 0:08:56]} 27. Rge1 {[%emt 0:04:40]} Ne3 {[%emt 0:01:06]} 28. Bf5 {[%emt 0:00:55]} Qxf5 {[%emt 0:02:20]} 29. Qxf5 {[%emt 0:00:38]} Nxf5 {[%emt 0:00:30]} 30. Rxe5 {[%emt 0:00:00]} Rde8 {[%emt 0:00:24]} 31. Rxf5 {[%emt 0:00:58]} Rxe6 {[%emt 0:00:30]} 32. Rxd5 {[%emt 0:00:00]} Re2 {[%emt 0:00:20]} 33. Rg1 {[%emt 0:00:17]} c6 {[%emt 0:01:28]} 34. Rd7 {[%emt 0:00:18]} Rxh2 {[%emt 0:00:29]} 35. g6 {[%emt 0:00:38]} Rg8 {[%emt 0:01:28]} 36. g7 {[%emt 0:01:06]} Re2 {[%emt 0:01:02]} 37. Rf7 {[%emt 0:00:51]} Ree8 {[%emt 0:00:35]} 38. Rh1 {[%emt 0:00:12]} a5 {[%emt 0:01:03]} 39. Rxh4 {[%emt 0:00:30]} Ka7 {[%emt 0:00:00]} 40. Rhf4 {[%emt 0:00:31]} Re1+ {[%emt 0:00:00]} 41. Ka2 {[%emt 0:00:00]} Rg1 {[%emt 0:00:00]} 1/2-1/2

[Event "TUR-ch Youth U17 2019"]
[Site "Belek"]
[Date "2019.01.25"]
[Round "9"]
[White "Esti, Kubra Selenay"]
[Black "Kargaci, Humeyra"]
[Result "1-0"]
[ECO "A45"]
[WhiteElo "1662"]
[BlackElo "1740"]
[Annotator "NA RC"]
[PlyCount "91"]
[EventDate "2019.01.20"]
[EventType "swiss"]
[EventCountry "TUR"]
[SourceTitle "playchess.com"]
[Source "ChessBase"]
[SourceQuality "1"]
[TimeControl "5400+30"]

1. d4 {[%emt 0:01:30]} Nf6 {[%emt 0:00:30]} 2. Bf4 {[%emt 0:00:30]} g6 {[%emt 0:02:30]} 3. Nc3 {[%emt 0:00:30]} d5 {[%emt 0:06:30]} 4. Qd2 {[%emt 0:01:30]} Bf5 {[%emt 0:07:30]} 5. Nf3 {[%emt 0:02:30]} c6 {[%emt 0:11:30]} 6. Ne5 {[%emt 0:00:30]} Nbd7 {[%emt 0:00:30]} 7. f3 {[%emt 0:04:30]} h5 {[%emt 0:09:30]} 8. O-O-O {[%emt 0:02:30]} Bg7 {[%emt 0:02:30]} 9. Qe1 {[%emt 0:06:30]} Nb6 {[%emt 0:07:30]} 10. e4 {[%emt 0:10:30]} Be6 {[%emt 0:00:30]} 11. Kb1 {[%emt 0:07:30]} Bh6 {[%emt 0:05:30]} 12. Bxh6 {[%emt 0:09:30]} Rxh6 {[%emt 0:00:30]} 13. Qh4 {[%emt 0:02:30]} Rh8 {[%emt 0:06:30]} 14. exd5 {[%emt 0:11:30]} Nbxd5 {[%emt 0:00:30]} 15. Qe1 {[%emt 0:08:30]} Qc7 {[%emt 0:11:30]} 16. Na4 {[%emt 0:04:30]} Bf5 {[%emt 0:04:32]} 17. Nc5 {[%emt 0:03:30]} Kf8 {[%emt 0:01:23]} 18. Bd3 {[%emt 0:04:03]} Bxd3 {[%emt 0:00:55]} 19. Rxd3 {[%emt 0:03:44]} Kg7 {[%emt 0:01:59]} 20. Qg3 {[%emt 0:03:30]} h4 {[%emt 0:02:49]} 21. Qg5 {[%emt 0:04:32]} Rh5 {[%emt 0:00:43]} 22. Ne6+ {[%emt 0:01:53]} Kg8 {[%emt 0:05:45]} 23. Qxh5 {[%emt 0:00:44]} Nxh5 {[%emt 0:00:38]} 24. Nxc7 {[%emt 0:00:42]} Nxc7 {[%emt 0:00:00]} 25. Rb3 {[%emt 0:01:20]} Rb8 {[%emt 0:01:12]} 26. Nxc6 {[%emt 0:00:21]} Re8 {[%emt 0:01:26]} 27. Rxb7 {[%emt 0:00:16]} Nd5 {[%emt 0:00:06]} 28. Rxa7 {[%emt 0:01:10]} e6 {[%emt 0:01:50]} 29. Re1 {[%emt 0:01:09]} Ndf4 {[%emt 0:00:26]} 30. g4 {[%emt 0:01:39]} hxg3 {[%emt 0:00:00]} 31. hxg3 {[%emt 0:00:18]} Nxg3 {[%emt 0:00:09]} 32. Ne5 {[%emt 0:00:30]} f6 {[%emt 0:00:30]} 33. Nxg6 {[%emt 0:00:30]} Nfe2 {[%emt 0:00:30]} 34. Nh4 {[%emt 0:00:30]} Nxd4 {[%emt 0:00:30]} 35. c3 {[%emt 0:00:30]} Nde2 {[%emt 0:00:30]} 36. a4 {[%emt 0:00:30]} Rd8 {[%emt 0:00:30]} 37. Kc2 {[%emt 0:00:30]} Rd5 {[%emt 0:00:30]} 38. Ng6 {[%emt 0:00:30]} Rd8 {[%emt 0:00:30]} 39. Ne7+ {[%emt 0:00:30]} Kf8 {[%emt 0:05:58]} 40. Nc6 {[%emt 0:01:19]} Rd6 {[%emt 0:00:38]} 41. Rd1 {[%emt 0:00:35]} Rxd1 {[%emt 0:01:53]} 42. Kxd1 {[%emt 0:00:01]} Ng1 {[%emt 0:00:00]} 43. Nd4 {[%emt 0:00:40]} e5 {[%emt 0:00:34]} 44. Ne6+ {[%emt 0:00:06]} Ke8 {[%emt 0:00:00]} 45. Rg7 {[%emt 0:00:32]} N1e2 {[%emt 0:00:03]} 46. a5 {[%emt 0:00:03]} 1-0

[Event "TUR-ch Youth U17 2019"]
[Site "Belek"]
[Date "2019.01.25"]
[Round "9"]
[White "Ozkurt, Kutay"]
[Black "Aytekin, Murat Eren"]
[Result "1-0"]
[ECO "A33"]
[WhiteElo "1586"]
[BlackElo "2163"]
[Annotator "NA"]
[PlyCount "127"]
[EventDate "2019.01.20"]
[EventType "swiss"]
[EventCountry "TUR"]
[SourceTitle "playchess.com"]
[Source "ChessBase"]
[SourceQuality "1"]
[TimeControl "5400+30"]

{[%evp 10,127,15,32767,9,16,22,35,37,46,50,45,43,35,43,-6,32767,32767,32767,32767,32767,10,70,64,81,50,65,65,117,18,33,25,32767,32767,32767,32767,17,12,40,0,32767,0,0,0,0,0,0,0,0,2,71,69,57,47,56,0,145,84,120,55,214,210,32767,233,285,32767,247,264,255,276,268,32767,32767,32767,32767,32767,283,360,355,362,380,446,32767,32767,32767,32767,32767,495,528,557,776,32767,484,995,1106,1034,1196,3813,1393,6170,4610,12807,4610,4758,32767,32767,32767,32767,4692,29974,6786,29977,29977,29969,29979,32767,29967,29985,29959,29980]} 1. e4 {[%emt 0:00:30]} c5 {[%emt 0:00:30]} 2. Nf3 {[%emt 0:00:30]} e6 {[%emt 0:00:30]} 3. b3 {[%emt 0:00:30]} a6 {[%emt 0:01:30]} 4. c4 {[%emt 0:00:00]} Nc6 {[%emt 0:01:30]} 5. Bb2 {[%emt 0:00:00]} Qc7 {[%emt 0:01:30]} 6. Nc3 {[%emt 0:00:30]} Nf6 {[%emt 0:01:30]} 7. g3 {[%emt 0:05:30] LiveBook: 20 Games} d6 {[%emt 0:02:30]} 8. d4 {[%emt 0:01:30]} cxd4 {[%emt 0:01:30]} 9. Nxd4 {[%emt 0:00:00]} Be7 {[%emt 0:02:30]} 10. Bg2 {[%emt 0:00:00]} Bd7 {[%emt 0:02:30]} 11. O-O {[%emt 0:01:30]} O-O {[%emt 0:00:30]} 12. Kh1 {[%emt 0:01:30] A33: Symmetrical English: 2 Nf3 Nf6 3 d4 cxd4 4 Nxd4 e6 5 Nc3 Nc6} (12. Nxc6 $14 Bxc6 13. Rc1) (12. Qd2 Rac8 13. Rad1 Rfd8 14. Kh1 Ne8 15. f4 Nxd4 16. Qxd4 Bf6 17. Qa7 b5 18. Qxc7 Rxc7 19. e5 dxe5 20. fxe5 {½-½ (29) Piotrowski,P (2320)-Lewtak,D (2387) Katowice 2018}) 12... Rfd8 {[%emt 0:07:30]} 13. Nxc6 $146 {[%emt 0:00:30]} ({You set blue moves yourself with the critical opening position annotation.:} 13. Nce2 Rac8 14. Qd2 Nxd4 15. Nxd4 Bc6 16. Nxc6 bxc6 17. Bc3 Rd7 18. Rac1 Ne8 19. Rfd1 Qb7 {0-1 (73) Steiner,E-Naegeli,O Paris 1924}) 13... Bxc6 {[%emt 0:00:30]} 14. Qe2 {[%emt 0:01:30]} Rac8 {[%emt 0:07:30]} 15. Rad1 {[%emt 0:03:30]} e5 {[%emt 0:07:30]} (15... Qb8 $11) 16. Nd5 {[%emt 0:03:30]} Bxd5 {[%emt 0:00:30]} 17. exd5 {[%emt 0:00:00]} Re8 {[%emt 0:04:30]} 18. f4 {[%emt 0:02:00]} e4 {[%emt 0:06:30]} (18... Nd7 $14) 19. Bxe4 {[%emt 0:02:30]} (19. Bh3 $16) 19... Nxe4 {[%emt 0:05:30]} 20. Qxe4 {[%emt 0:00:30]} Bf6 {[%emt 0:01:30]} 21. Qg2 {[%emt 0:00:30]} Bxb2 {[%emt 0:01:30]} 22. Qxb2 {[%emt 0:00:00]} b5 {[%emt 0:01:30]} 23. Rc1 {[%emt 0:04:00]} Qb7 {[%emt 0:02:30]} 24. Qd4 {[%emt 0:00:00]} Re2 {[%emt 0:03:30]} 25. Qd3 {[%emt 0:06:00]} Rce8 {[%emt 0:03:30]} 26. Rc2 {[%emt 0:00:30]} R2e3 {[%emt 0:02:30]} 27. Qd2 {[%emt 0:01:30]} h5 {[%emt 0:02:30]} 28. f5 {[%emt 0:07:30]} Qe7 {[%emt 0:08:53]} 29. f6 {[%emt 0:03:30]} Qe5 {[%emt 0:02:49]} (29... gxf6 $11 {keeps the balance.} 30. Qd4 Re1) 30. fxg7 {[%emt 0:01:30]} bxc4 {[%emt 0:03:50]} 31. bxc4 {[%emt 0:00:30]} Re7 {[%emt 0:01:57]} 32. Qf2 {[%emt 0:00:30]} (32. Qd1 $14) 32... Qe4+ {[%emt 0:00:51]} (32... h4 $11 {remains equal.}) 33. Kg1 {[%emt 0:01:30]} Qg6 {[%emt 0:01:15] [#]} (33... h4 $1 $14) 34. Qf5 {[%emt 0:02:30]} (34. Rb2 $1 $16) 34... Qxg7 {[%emt 0:01:08]} (34... Kxg7 $14 35. c5 dxc5) 35. Qxh5 {[%emt 0:00:00]} R7e5 {[%emt 0:01:50]} 36. Qh4 {[%emt 0:01:00]} Qg6 {[%emt 0:02:10]} 37. Rcf2 {[%emt 0:01:30]} R5e4 {[%emt 0:01:59]} 38. Qd8+ {[%emt 0:00:30]} Re8 {[%emt 0:00:24]} 39. Qf6 {[%emt 0:00:30]} R8e4 {[%emt 0:02:37]} 40. Qxf7+ {[%emt 0:01:30]} Qxf7 {[%emt 0:00:30]} 41. Rxf7 {[%emt 0:00:00]} Rxc4 {[%emt 0:00:12]} 42. Rd7 {[%emt 0:00:00]} Rc2 {[%emt 0:00:17]} 43. Rf2 {[%emt 0:01:30]} ({Not} 43. Rxd6 Ree2 $16) 43... Re1+ {[%emt 0:01:00]} 44. Kg2 $1 {[%emt 0:00:30]} Ree2 {[%emt 0:00:00]} 45. Rxe2 {[%emt 0:00:00]} Rxe2+ {[%emt 0:00:22]} 46. Kh3 {[%emt 0:00:00]} Rxa2 {[%emt 0:00:30]} 47. Rxd6 {[%emt 0:00:30]} Kf7 {[%emt 0:00:00]} 48. g4 {[%emt 0:00:00]} a5 {[%emt 0:00:40]} 49. Ra6 {[%emt 0:00:00]} a4 {[%emt 0:00:01]} 50. Kg3 {[%emt 0:00:30]} a3 {[%emt 0:01:30]} 51. h4 {[%emt 0:00:00]} Ra1 {[%emt 0:00:15]} 52. Kf4 {[%emt 0:00:00]} a2 {[%emt 0:00:29] [#]} 53. Kg5 $1 {[%emt 0:00:00]} Kg7 {[%emt 0:00:31]} 54. Ra7+ {[%emt 0:00:00]} Kg8 {[%emt 0:00:14]} 55. Kg6 {[%emt 0:01:30]} Kf8 {[%emt 0:00:12]} 56. g5 {[%emt 0:00:30]} Rh1 {[%emt 0:00:58]} 57. Rxa2 {[%emt 0:00:30]} Rxh4 {[%emt 0:00:00]} 58. Rd2 {[%emt 0:00:00]} Ke7 {[%emt 0:00:29]} 59. d6+ {[%emt 0:00:00]} Kd7 {[%emt 0:00:00]} 60. Kg7 {[%emt 0:00:00]} Rh1 {[%emt 0:00:20]} 61. g6 {[%emt 0:00:00]} Rh3 {[%emt 0:00:02]} 62. Kg8 {[%emt 0:00:30]} Rh1 {[%emt 0:01:04]} 63. g7 {[%emt 0:00:00]} Rh3 {[%emt 0:00:49]} 64. Rf2 {[%emt 0:00:00]} 1-0

[Event "TUR-ch Youth U17 2019"]
[Site "Belek"]
[Date "2019.01.26"]
[Round "11"]
[White "Gunduz, Umut Erdem"]
[Black "Aytekin, Murat Eren"]
[Result "1-0"]
[ECO "B06"]
[WhiteElo "2255"]
[BlackElo "2163"]
[Annotator "NA"]
[PlyCount "49"]
[EventDate "2019.01.20"]
[EventType "swiss"]
[EventCountry "TUR"]
[SourceTitle "playchess.com"]
[Source "ChessBase"]
[SourceQuality "1"]
[TimeControl "5400+30"]

{[%evp 9,49,47,43,36,58,58,65,53,49,0,1,8,67,54,61,56,70,72,102,114,110,120,203,213,211,222,233,32767,32767,32767,217,32767,32767,504,32767,32767,476,516,158,32767,979,2083]} 1. e4 {[%emt 0:01:30]} g6 {[%emt 0:00:30]} 2. d4 {[%emt 0:00:30]} Bg7 {[%emt 0:00:30]} 3. Nc3 {[%emt 0:00:30]} d6 {[%emt 0:00:30]} 4. f4 {[%emt 0:00:00]} Nc6 {[%emt 0:00:00]} 5. Nf3 {[%emt 0:04:00]} Bg4 {[%emt 0:00:00]} 6. Be3 {[%emt 0:01:30]} Bxf3 {[%emt 0:00:00]} 7. gxf3 {[%emt 0:00:30]} ({Don't play} 7. Qxf3 Bxd4 8. Bb5 Bxc3+ 9. bxc3 a6 $11) 7... d5 {[%emt 0:00:00]} 8. Bb5 {[%emt 0:01:30] B06: Modern Defence} e6 {[%emt 0:00:30]} 9. Bxc6+ {[%emt 0:04:30] LiveBook: 3 Games} (9. f5 Nge7 10. fxe6 fxe6 11. Qe2 O-O 12. O-O-O a6 13. Bxc6 Nxc6 14. h4 Qf6 15. f4 dxe4 {1-0 (48) Neiksans,A (2596)-Azmaiparashvili,Z (2637) Liepaja 2015}) 9... bxc6 {[%emt 0:00:00]} 10. Qd2 {[%emt 0:00:30]} Ne7 $146 {[%emt 0:02:00]} ({Black should play} 10... a5 $11) ({Predecessor:} 10... Nf6 11. O-O-O O-O 12. f5 exf5 13. exf5 Ne8 14. Bg5 Qd7 15. Qd3 Nd6 {½-½ (61) Fishbein,A (2470)-Mohr,S (2425) New York 1990}) 11. O-O-O {[%emt 0:02:30]} O-O {[%emt 0:00:30]} 12. h4 {[%emt 0:00:30]} h5 $1 {[%emt 0:01:30]} 13. Na4 {[%emt 0:01:30]} Qb8 {[%emt 0:01:30]} 14. Nc5 {[%emt 0:00:30]} Rd8 {[%emt 0:09:30]} 15. Rhg1 {[%emt 0:16:30]} Qb6 {[%emt 0:07:30]} (15... Kh7 $16) 16. f5 {[%emt 0:01:30]} exf5 {[%emt 0:27:30] [#]} 17. e5 $1 {[%emt 0:16:30]} Kh7 {[%emt 0:15:30]} 18. Bg5 {[%emt 0:09:30]} Re8 {[%emt 0:02:30]} 19. e6 {[%emt 0:00:30]} f6 {[%emt 0:02:30]} 20. Nd7 {[%emt 0:01:30]} Qa6 {[%emt 0:04:30]} 21. Nxf6+ {[%emt 0:02:30]} Bxf6 {[%emt 0:02:30]} 22. Bxf6 {[%emt 0:00:30]} Qxa2 {[%emt 0:01:30]} 23. Qg5 {[%emt 0:09:30]} Qa1+ $16 {[%emt 0:01:44]} (23... Rab8 $18 24. b3 (24. Bxe7 Qxb2+ 25. Kd2 Qxd4+ 26. Ke2 Qg7 $11) 24... Rg8 25. Bxe7 Qa1+ 26. Kd2 Qxd4+ 27. Ke1 Qc3+ 28. Rd2 a6) 24. Kd2 {[%emt 0:00:30]} Qxb2 {[%emt 0:00:22]} 25. Rb1 {[%emt 0:00:30]} 1-0

[Event "TUR-ch Youth U17 2019"]
[Site "Belek"]
[Date "2019.01.26"]
[Round "11"]
[White "Cansun, Can Alp"]
[Black "Turkmen, Ataberk"]
[Result "1-0"]
[ECO "B00"]
[WhiteElo "2174"]
[BlackElo "1856"]
[Annotator "NA"]
[PlyCount "47"]
[EventDate "2019.01.20"]
[EventType "swiss"]
[EventCountry "TUR"]
[SourceTitle "playchess.com"]
[Source "ChessBase"]
[SourceQuality "1"]
[TimeControl "5400+30"]

{[%evp 8,46,40,48,32767,32767,32767,32767,91,112,32767,32767,32767,32767,32767,32767,32767,497,494,483,32767,508,719,741,703,32767,32767,32767,550,540,522,32767,572,569,549,596,562,577,536,518,464]} 1. e4 {[%emt 0:00:30]} b6 {[%emt 0:00:30]} 2. d4 {[%emt 0:01:30]} Bb7 {[%emt 0:00:30]} 3. Nc3 {[%emt 0:00:30]} e6 {[%emt 0:00:30]} 4. Bd3 {[%emt 0:01:30]} Bb4 {[%emt 0:03:30]} 5. Nge2 {[%emt 0:01:30] LiveBook: 22 Games} c5 {[%emt 0:16:30]} 6. dxc5 {[%emt 0:00:30] B00: Queen's Fianchetto Defence, Nimzowitsch Defence} bxc5 {[%emt 0:00:30]} 7. O-O {[%emt 0:04:30]} Ne7 {[%emt 0:03:30]} 8. Nb5 {[%emt 0:07:30]} (8. Be3 d6 9. a3 Bxc3 10. Nxc3 Nd7 11. Bb5 a6 12. Ba4 Qc7 13. Bf4 e5 {1-0 (56) Mrdja,M (2402)-Franic,M (2379) Sibenik 2011}) 8... d6 $146 {[%emt 0:23:30]} ({Predecessor:} 8... O-O 9. Bf4 Ba5 10. Nd6 Bc6 11. e5 Ng6 12. Bg3 h5 13. Nf4 Nxf4 14. Bxf4 {½-½ (68) Wilke,T (1753)-Froehlich Dill,A (1813) Germany 2017}) 9. Nxd6+ {[%emt 0:01:30]} Qxd6 {[%emt 0:02:30]} 10. Bb5+ {[%emt 0:00:00]} Qc6 {[%emt 0:01:30]} 11. Bxc6+ {[%emt 0:00:00]} Nbxc6 {[%emt 0:00:00]} 12. c3 {[%emt 0:02:30]} Ba5 {[%emt 0:00:00]} 13. Be3 {[%emt 0:00:30]} Bb6 {[%emt 0:00:30]} 14. b4 {[%emt 0:02:30]} c4 {[%emt 0:02:30]} 15. Bxb6 {[%emt 0:00:30]} axb6 {[%emt 0:00:30]} 16. Nd4 {[%emt 0:02:30]} O-O {[%emt 0:00:30]} 17. Nxc6 {[%emt 0:00:30]} Bxc6 {[%emt 0:01:30]} 18. Qd6 {[%emt 0:01:30]} Rfe8 {[%emt 0:00:00]} 19. a4 {[%emt 0:00:30]} Bxe4 {[%emt 0:01:00]} 20. Qxb6 {[%emt 0:00:30]} Nd5 {[%emt 0:00:30]} 21. Qd4 {[%emt 0:01:30]} Bd3 {[%emt 0:00:30]} 22. Rfd1 {[%emt 0:16:30]} Rad8 {[%emt 0:00:30]} 23. Rxd3 {[%emt 0:01:30]} cxd3 $18 {[%emt 0:00:00]} 24. Rd1 {[%emt 0:01:30]} 1-0

[Event "TUR-ch Youth U17 2019"]
[Site "Belek"]
[Date "2019.01.26"]
[Round "11"]
[White "Sen, Irem"]
[Black "Kocyigit, Buse Naz"]
[Result "0-1"]
[ECO "A43"]
[WhiteElo "1765"]
[BlackElo "2043"]
[Annotator "NA"]
[PlyCount "50"]
[EventDate "2019.01.20"]
[EventType "swiss"]
[EventCountry "TUR"]
[SourceTitle "playchess.com"]
[Source "ChessBase"]
[SourceQuality "1"]
[TimeControl "5400+30"]

1. d4 {[%emt 0:00:30]} c5 {[%emt 0:00:30]} 2. Nf3 {[%emt 0:00:30]} cxd4 {[%emt 0:02:30]} 3. Nxd4 {[%emt 0:00:00]} d5 {[%emt 0:00:30]} 4. g3 {[%emt 0:03:00]} e5 {[%emt 0:08:30]} 5. Nb3 {[%emt 0:00:30] A43: Schmid Benoni} Nc6 {[%emt 0:00:30]} 6. Bg2 {[%emt 0:00:30]} Be6 {[%emt 0:01:30]} 7. c3 {[%emt 0:07:30]} (7. O-O Bb4 8. c3 Be7 9. Be3 Nf6 10. Nc5 Bc8 11. Qa4 O-O 12. Rd1 Qc7 13. b4 Bg4 14. f3 Bf5 15. Na3 {½-½ (45) Plat,V (2520)-Gordievsky,D (2562) Yerevan 2017}) 7... Rc8 {[%emt 0:14:30]} 8. O-O {[%emt 0:02:30]} h5 {[%emt 0:01:30]} 9. Qd3 $146 {[%emt 0:19:30]} ({Predecessor:} 9. h4 Nh6 10. e4 dxe4 11. Qxd8+ Rxd8 12. Bxe4 Ng4 13. f3 Nf6 14. Bxc6+ bxc6 15. Be3 {½-½ (37) Car,T (2310)-Sinanovic,M (2400) Pula 1998}) 9... h4 {[%emt 0:05:30]} 10. Rd1 {[%emt 0:06:30]} hxg3 {[%emt 0:03:30]} 11. hxg3 {[%emt 0:08:30]} Qf6 {[%emt 0:28:30]} 12. a4 {[%emt 0:09:30]} a6 {[%emt 0:04:30]} 13. Na3 {[%emt 0:07:30]} g5 {[%emt 0:03:30]} 14. f3 {[%emt 0:25:21]} Bh3 {[%emt 0:08:13]} ({Less strong is} 14... Qh6 15. Kf2 $17) 15. Qe3 {[%emt 0:01:42]} Bxg2 {[%emt 0:02:07]} 16. Kxg2 {[%emt 0:00:30]} Qh6 {[%emt 0:00:00]} 17. Qg1 {[%emt 0:00:39]} Qh3+ {[%emt 0:00:10]} 18. Kf2 {[%emt 0:00:00]} g4 {[%emt 0:06:40]} 19. Rxd5 {[%emt 0:00:30]} gxf3 {[%emt 0:01:01]} 20. exf3 {[%emt 0:00:12]} Qe6 {[%emt 0:00:29]} 21. c4 {[%emt 0:01:11]} Nf6 {[%emt 0:01:37]} 22. Rd1 $19 {[%emt 0:00:38]} Qf5 {[%emt 0:03:56]} 23. Bd2 {[%emt 0:03:03]} Ng4+ {[%emt 0:00:27]} 24. Kg2 {[%emt 0:00:53]} Rh2+ {[%emt 0:00:41]} 25. Qxh2 {[%emt 0:00:00]} Qxf3+ {[%emt 0:00:00]} 0-1

[Event "TUR-ch Youth U17 2019"]
[Site "Belek"]
[Date "2019.01.26"]
[Round "11"]
[White "Baspinar, Lara"]
[Black "Aslan, Lina"]
[Result "1-0"]
[ECO "B28"]
[WhiteElo "1763"]
[BlackElo "1498"]
[Annotator "NA"]
[PlyCount "89"]
[EventDate "2019.01.20"]
[EventType "swiss"]
[EventCountry "TUR"]
[SourceTitle "playchess.com"]
[Source "ChessBase"]
[SourceQuality "1"]
[TimeControl "5400+30"]

1. e4 {[%emt 0:00:30]} c5 {[%emt 0:00:30]} 2. Nf3 {[%emt 0:00:30]} a6 {[%emt 0:00:00]} 3. d4 {[%emt 0:00:00]} cxd4 {[%emt 0:00:00]} 4. Nxd4 {[%emt 0:00:00]} Nf6 {[%emt 0:00:00]} 5. Bd3 {[%emt 0:06:30]} e5 {[%emt 0:02:00]} 6. Nb3 {[%emt 0:02:30]} Nc6 {[%emt 0:02:30]} 7. O-O {[%emt 0:05:30]} d6 {[%emt 0:18:30]} 8. c4 {[%emt 0:09:30]} Bg4 {[%emt 0:08:30]} 9. f3 {[%emt 0:13:30]} Qb6+ {[%emt 0:08:30]} 10. Kh1 {[%emt 0:06:30]} Be6 {[%emt 0:00:30]} 11. Nc3 {[%emt 0:01:30]} Nd7 {[%emt 0:12:30]} 12. Nd5 {[%emt 0:02:30]} Bxd5 {[%emt 0:01:30]} 13. cxd5 {[%emt 0:00:30]} Na5 {[%emt 0:01:30]} 14. Nxa5 {[%emt 0:05:30]} Qxa5 {[%emt 0:00:00]} 15. Bd2 {[%emt 0:00:30]} Qb6 {[%emt 0:03:00]} 16. b4 {[%emt 0:03:30]} Be7 {[%emt 0:03:30]} 17. Qe2 {[%emt 0:00:30]} Rc8 {[%emt 0:00:30]} 18. Be3 {[%emt 0:04:30]} Qd8 {[%emt 0:04:30]} 19. Rfc1 {[%emt 0:01:30]} O-O {[%emt 0:00:30]} 20. Rxc8 {[%emt 0:02:30]} Qxc8 {[%emt 0:00:30]} 21. Rc1 {[%emt 0:00:30]} Qd8 {[%emt 0:00:30]} 22. Qd2 {[%emt 0:00:30]} Nb6 {[%emt 0:00:30]} 23. b5 {[%emt 0:00:30]} axb5 {[%emt 0:00:30]} 24. Bxb5 {[%emt 0:00:30]} Na8 {[%emt 0:00:30]} 25. a4 {[%emt 0:15:41]} f5 {[%emt 0:16:35]} 26. exf5 {[%emt 0:03:30]} Rxf5 {[%emt 0:01:03]} 27. Bd3 {[%emt 0:00:04]} Rf8 {[%emt 0:00:38]} 28. Qc2 {[%emt 0:02:21]} h6 {[%emt 0:01:31]} 29. Bf5 {[%emt 0:00:44]} Bg5 {[%emt 0:03:00]} 30. Be6+ {[%emt 0:03:12]} Kh8 {[%emt 0:00:02]} 31. Qd2 {[%emt 0:00:00]} Bxe3 {[%emt 0:02:25]} 32. Qxe3 {[%emt 0:00:00]} Qa5 {[%emt 0:00:00]} 33. Qa3 {[%emt 0:02:55]} Rd8 {[%emt 0:00:52]} 34. Qb3 {[%emt 0:01:45]} Nb6 {[%emt 0:05:02]} 35. h3 {[%emt 0:01:35]} Ra8 {[%emt 0:03:58]} 36. Rc7 {[%emt 0:02:26]} Qe1+ {[%emt 0:01:37]} 37. Kh2 {[%emt 0:00:05]} Qf2 {[%emt 0:00:12]} 38. Rxb7 {[%emt 0:01:07]} Nxa4 {[%emt 0:01:00]} 39. Rb8+ {[%emt 0:00:23]} Rxb8 {[%emt 0:00:00]} 40. Qxb8+ {[%emt 0:00:31]} Kh7 {[%emt 0:00:00]} 41. Bf5+ {[%emt 0:00:20]} g6 {[%emt 0:00:03]} 42. Qc7+ {[%emt 0:00:00]} Kg8 {[%emt 0:00:00]} 43. Be6+ {[%emt 0:00:11]} Kh8 {[%emt 0:00:00]} 44. Qd8+ {[%emt 0:00:04]} Kh7 {[%emt 0:00:00]} 45. Qg8# {[%emt 0:00:02]} 1-0